Cogmind - Beta 13 @@@ ROGUE MODE // 2024.04.07 @ 19:13:19 Player: f_ Result: Destroyed by S-27 Virus with Autogun Performance ------------- Evolutions (3) 1500 Regions Visited (7) 1400 Robots Destroyed (0) 0 Value Destroyed (0) 0 Prototype IDs (0) 0 Alien Tech Used (0) 0 Bonus (1534) 1534 TOTAL SCORE: 4434 Bonus ------- Pacifist 834 Entered Garrisons 200 Entered DSFs 500 Cogmind --------- Core Integrity 0/700 Matter 133/300 Energy 100/100 System Corruption 0% Temperature Cool (0) Movement Core (50) Location -7/Garrison Parts ------- > --- POWER (1) -------- (None) > --- PROPULSION (4) --- (None) > --- UTILITY (6) ------ (None) > --- WEAPON (2) ------- (None) > --- INVENTORY (5) ---- Heavy Mace Peak State ------------ > --- POWER ------------ Light Nuclear Core > --- PROPULSION ------- Armored Treads Armored Treads Armored Treads > --- UTILITY ---------- Advanced Weight Redist. System Machine Analyzer Advanced Visual Processing Unit Signal Interpreter Layered Light Armor Plating > --- WEAPON ----------- Chainsword > --- INVENTORY -------- Heavy Mace [Rating: 30] Favorites ----------- Power Light Nuclear Core Power Core Light Nuclear Core Propulsion VTOL Module Treads Armored Treads Flight Unit VTOL Module Utility Signal Interpreter Device Advanced Weight Redist. System Processor Signal Interpreter Protection Layered Light Armor Plating Weapon Chainsword Slashing Weapon Chainsword Build | -11 -10 -9 -8 -8 -7 -7 -7 ------- Run | Yrd Mat Mat Mat Sto Fac DSF Gar Slots Evolved 6 | . . 2 2 . 2 . . Power . | . . . . . . . . Propulsion 2 | . . 1 1 . . . . Utility 4 | . . 1 1 . 2 . . Weapon . | . . . . . . . . Parts Attached 17 | . 3 3 1 2 . 6 2 Power 3 | . . 1 . . . 1 1 Engine . | . . . . . . . . Core 3 | . . 1 . . . 1 1 Reactor . | . . . . . . . . Propulsion 8 | . 2 1 1 1 . 3 . Treads 3 | . . . . . . 3 . Leg . | . . . . . . . . Wheel . | . . . . . . . . Hover . | . . . . . . . . Flight 5 | . 2 1 1 1 . . . Utility 5 | . 1 1 . 1 . 2 . Device 1 | . . 1 . . . . . Storage . | . . . . . . . . Processor 3 | . 1 . . 1 . 1 . Hackware . | . . . . . . . . Protection 1 | . . . . . . 1 . Artifact . | . . . . . . . . Weapon 1 | . . . . . . . 1 Energy Gun . | . . . . . . . . Energy Cannon . | . . . . . . . . Ballistic Gun . | . . . . . . . . Ballistic Cannon . | . . . . . . . . Launcher . | . . . . . . . . Special Weapon . | . . . . . . . . Impact Weapon . | . . . . . . . . Slashing Weapon 1 | . . . . . . . 1 Piercing Weapon . | . . . . . . . . Special Melee Weapon . | . . . . . . . . Unidentified Prototypes . | . . . . . . . . Parts Lost 11 | . . 1 . 4 . 1 5 Power 3 | . . . . 1 . . 2 Propulsion 6 | . . 1 . 3 . 1 1 Utility 2 | . . . . . . . 2 Weapon . | . . . . . . . . Highest Loss Streak 5 | . . 1 . 4 . 5 5 To Critical Strikes . | . . . . . . . . Average Slot Usage (%) 48 | . 19 55 54 60 30 32 62 Core 4 | . . 6 9 8 . 1 5 Treads 5 | . . . . . . . 18 Flight 13 | . 12 28 27 30 7 1 . Device 6 | . . 8 9 9 7 7 6 Processor 14 | . 7 11 9 12 15 19 21 Protection 1 | . . . . . . 1 4 Slashing Weapon 1 | . . . . . . . 5 Naked Turns 40 | . 30 . . . . . 10 Heaviest Build 12 | . . 5 5 5 . 9 12 Greatest Support 17 | 3 8 17 12 16 4 12 12 Greatest Overweight (x) . | . . . . . . . . Average Overweight (x) . | . . . . . . . . Largest Inventory Capacity 5 | 5 5 5 5 5 5 5 5 Average Capacity 5 | 5 5 5 5 5 5 5 5 Most Carried 5 | . 3 3 1 4 4 5 1 Average Carried 2 | . 1 2 1 3 4 4 1 Final Capacity 5 | 5 5 5 5 5 5 5 5 Final Carried 4 | . 2 2 1 4 4 1 1 Class Distribution -------------------- 53% | Mutant 46% | Sprinter Dominant Class ---------------- Sprinter | -10/Materials Sprinter | -9/Materials Sprinter | -8/Materials Sprinter | -8/Storage Mutant | -7/Factory Mutant | -7/DSF Mutant | -7/Garrison Resources | -11 -10 -9 -8 -8 -7 -7 -7 ----------- Run | Yrd Mat Mat Mat Sto Fac DSF Gar Matter Collected 124 | . 34 . . 69 . . 21 Remotely . | . . . . . . . . Salvage Created . | . . . . . . . . Parts . | . . . . . . . . Haulers Intercepted . | . . . . . . . . Recyclers Shooed . | . . . . . . . . Parts Field Recycled . | . . . . . . . . Retrieved Matter . | . . . . . . . . Parts Self-Destructed . | . . . . . . . . Prevented . | . . . . . . . . Kills | -11 -10 -9 -8 -8 -7 -7 -7 ------- Run | Yrd Mat Mat Mat Sto Fac DSF Gar Combat Hostiles Destroyed . | . . . . . . . . Classes Destroyed . | . . . . . . . . Best Kill Streak . | . . . . . . . . Combat Bots Only . | . . . . . . . . Max Kills in Single Turn . | . . . . . . . . Gunslinging . | . . . . . . . . Exploded . | . . . . . . . . Melee . | . . . . . . . . Uniques/NPCs Destroyed . | . . . . . . . . Combat | -11 -10 -9 -8 -8 -7 -7 -7 -------- Run | Yrd Mat Mat Mat Sto Fac DSF Gar Hostile Shots Fired 288 | . 20 19 . 22 . 1 226 Missed 132 | . 13 15 . 11 . . 93 Damage Taken 2233 | . 100 54 . 170 . 45 1864 Core 839 | . 86 . . 51 . 31 671 Absorbed by Shields . | . . . . . . . . Core Remaining (%) 88 | 100 65 100 . 90 . . . Volleys Fired . | . . . . . . . . Largest . | . . . . . . . . Hottest . | . . . . . . . . Shots Fired . | . . . . . . . . Gun . | . . . . . . . . Cannon . | . . . . . . . . Launcher . | . . . . . . . . Special . | . . . . . . . . Kinetic . | . . . . . . . . Thermal . | . . . . . . . . Explosive . | . . . . . . . . Electromagnetic . | . . . . . . . . Robot Hit Streak . | . . . . . . . . Robot Miss Streak . | . . . . . . . . Penetration Max . | . . . . . . . . Secondary Targets . | . . . . . . . . Shots Hit Robots . | . . . . . . . . Core Hits 2 | . . . . . . . 2 Critical Kills . | . . . . . . . . Critical Parts Destroyed . | . . . . . . . . Critical Strikes . | . . . . . . . . Melee Attacks . | . . . . . . . . Impact . | . . . . . . . . Slashing . | . . . . . . . . Piercing . | . . . . . . . . Sneak Attacks . | . . . . . . . . Combat Hostiles . | . . . . . . . . Follow-up Attacks . | . . . . . . . . Damage Inflicted 30 | . . 1 . . . . 29 Guns . | . . . . . . . . Cannons . | . . . . . . . . Explosions . | . . . . . . . . Melee . | . . . . . . . . Ramming 30 | . . 1 . . . . 29 Kinetic . | . . . . . . . . Thermal . | . . . . . . . . Explosive . | . . . . . . . . Electromagnetic . | . . . . . . . . Impact . | . . . . . . . . Slashing . | . . . . . . . . Piercing . | . . . . . . . . Highest Corruption . | . . . . . . . . Average Corruption . | . . . . . . . . Corruption Purged . | . . . . . . . . Corruption Blocked . | . . . . . . . . Overload Shots . | . . . . . . . . Overflow Damage . | . . . . . . . . Projectiles . | . . . . . . . . Explosions . | . . . . . . . . Melee . | . . . . . . . . Knockbacks . | . . . . . . . . Impact . | . . . . . . . . Kinetic . | . . . . . . . . Secondary . | . . . . . . . . Self-Inflicted Damage 12 | . . . . . . . 12 Shots . | . . . . . . . . Rammed 10 | . . 1 . . . . 9 Targets Rammed 10 | . . 1 . . . . 9 Kicked . | . . . . . . . . Crushed . | . . . . . . . . Highest Temperature 11 | . . 3 . 11 . . 5 Average Temperature 4 | . . 3 . 5 . . 3 Received Heat Transfer 501 | . 57 24 . 90 . . 330 Siege Activations . | . . . . . . . . Robots Corrupted . | . . . . . . . . Combat Hostiles . | . . . . . . . . Parts Fried . | . . . . . . . . Impact Corruptions . | . . . . . . . . Robots Melted . | . . . . . . . . Combat Hostiles . | . . . . . . . . Parts Melted . | . . . . . . . . Heat Transferred . | . . . . . . . . Parts Sabotaged . | . . . . . . . . Parts Stolen . | . . . . . . . . Parts Stripped . | . . . . . . . . Power Chain Reactions . | . . . . . . . . Alert | -11 -10 -9 -8 -8 -7 -7 -7 ------- Run | Yrd Mat Mat Mat Sto Fac DSF Gar Peak Influence 136 | . 38 75 27 120 54 42 136 Initial 49 | . . 15 27 11 49 37 31 Average 57 | . 14 42 27 57 53 34 99 Maximum Alert Level . | . . . . . . . . Low Security (%) 100 | 100 100 100 100 100 100 100 100 Level 1 . | . . . . . . . . Level 2 . | . . . . . . . . Level 3 . | . . . . . . . . Level 4 . | . . . . . . . . Level 5 . | . . . . . . . . High Security . | . . . . . . . . Max Security . | . . . . . . . . Squads Dispatched 9 | . 1 1 . 7 . . . Investigation 8 | . . 1 . 7 . . . Extermination . | . . . . . . . . Reinforcement 1 | . 1 . . . . . . Assault . | . . . . . . . . Garrison . | . . . . . . . . Intercept . | . . . . . . . . Searches Triggered . | . . . . . . . . Construction Impeded . | . . . . . . . . Haulers Reinforced . | . . . . . . . . Active Scanning Responses . | . . . . . . . . Cargo Convoy Interrupts . | . . . . . . . . Stealth | -11 -10 -9 -8 -8 -7 -7 -7 --------- Run | Yrd Mat Mat Mat Sto Fac DSF Gar Distress Signals 1 | . . 1 . . . . . Communications Jammed . | . . . . . . . . Distress Signals . | . . . . . . . . Times Spotted 52 | . 5 7 . 18 . 1 21 Peak Tracking Total 16 | . 4 8 . 16 . 1 16 Tactical Retreats 6 | . . . . 2 . 1 3 Traps | -11 -10 -9 -8 -8 -7 -7 -7 ------- Run | Yrd Mat Mat Mat Sto Fac DSF Gar Traps Triggered . | . . . . . . . . Indirectly . | . . . . . . . . Trap Hack Attempts . | . . . . . . . . Triggered . | . . . . . . . . Disarmed . | . . . . . . . . Reprogrammed . | . . . . . . . . Reused . | . . . . . . . . Traps Extracted . | . . . . . . . . Installed . | . . . . . . . . Triggered . | . . . . . . . . Machines | -11 -10 -9 -8 -8 -7 -7 -7 ---------- Run | Yrd Mat Mat Mat Sto Fac DSF Gar Machines Disabled . | . . . . . . . . Max in Single Turn . | . . . . . . . . Machines Repaired . | . . . . . . . . Machines Dismantled . | . . . . . . . . Machines Sabotaged . | . . . . . . . . Overloaded Fab Kills . | . . . . . . . . Hacking | -11 -10 -9 -8 -8 -7 -7 -7 --------- Run | Yrd Mat Mat Mat Sto Fac DSF Gar Machines Accessed 18 | . 4 2 . 9 2 . 1 Terminals 18 | . 4 2 . 9 2 . 1 Fabricators . | . . . . . . . . Repair Stations . | . . . . . . . . Recycling Units . | . . . . . . . . Scanalyzers . | . . . . . . . . Garrison Access . | . . . . . . . . Total Hacks 53 | . 14 8 . 25 4 . 2 Successful 13 | . 4 1 . 6 1 . 1 Failed 40 | . 10 7 . 19 3 . 1 Catastrophic 12 | . 3 1 . 7 1 . . Database Lockouts . | . . . . . . . . Manual 48 | . 13 8 . 23 2 . 2 Terminals 53 | . 14 8 . 25 4 . 2 Fabricators . | . . . . . . . . Repair Stations . | . . . . . . . . Recycling Units . | . . . . . . . . Scanalyzers . | . . . . . . . . Garrison Access . | . . . . . . . . Terminal Hacks 5 | . 2 . . 2 1 . . Open DSF 1 | . . . . . 1 . . Level Access Points 2 | . 1 . . 1 . . . Terminal Index 2 | . 1 . . 1 . . . Fabricator Hacks . | . . . . . . . . Repair Station Hacks . | . . . . . . . . Recycling Unit Hacks . | . . . . . . . . Scanalyzer . | . . . . . . . . Garrison Access Hacks . | . . . . . . . . Unauthorized Hacks 8 | . 2 1 . 4 . . 1 Terminals 8 | . 2 1 . 4 . . 1 Assimilate 1 | . . . . 1 . . . Botnet 4 | . 1 . . 3 . . . Operators 2 | . 1 1 . . . . . Sabotage 1 | . . . . . . . 1 Fabricators . | . . . . . . . . Repair Stations . | . . . . . . . . Recycling Units . | . . . . . . . . Scanalyzers . | . . . . . . . . Garrison Access . | . . . . . . . . Data Cores Recovered . | . . . . . . . . Used . | . . . . . . . . Hacking Detections 16 | . 4 2 . 9 1 . . Full Trace Events 10 | . . 1 . 9 . . . Feedback Events . | . . . . . . . . Feedback Blocked . | . . . . . . . . Robot Schematics Acquired . | . . . . . . . . Robots Built . | . . . . . . . . Authchips . | . . . . . . . . Time . | . . . . . . . . Total Robot Build Rating . | . . . . . . . . Part Schematics Acquired . | . . . . . . . . Parts Built . | . . . . . . . . Authchips . | . . . . . . . . Time . | . . . . . . . . Total Part Build Rating . | . . . . . . . . Parts Repaired . | . . . . . . . . Time . | . . . . . . . . Parts Recycled . | . . . . . . . . Recycled Matter . | . . . . . . . . Retrieved Matter . | . . . . . . . . Retrieved Components . | . . . . . . . . Parts Scanalyzed . | . . . . . . . . Part Schematics Acquired . | . . . . . . . . Parts Damaged . | . . . . . . . . Bothacking | -11 -10 -9 -8 -8 -7 -7 -7 ------------ Run | Yrd Mat Mat Mat Sto Fac DSF Gar Used RIF Installer . | . . . . . . . . Robots Hacked . | . . . . . . . . Non-combat . | . . . . . . . . Combat . | . . . . . . . . Robot Hacks Applied . | . . . . . . . . Relay Couplers Released . | . . . . . . . . Fabnet Peak Effective % . | . . . . . . . . Robots Rewired . | . . . . . . . . Allies Hacked . | . . . . . . . . Hacks Repelled . | . . . . . . . . Allies | -11 -10 -9 -8 -8 -7 -7 -7 -------- Run | Yrd Mat Mat Mat Sto Fac DSF Gar Total Allies 1 | . . . . 1 . . . Largest Group 1 | . . . . 1 . . . Highest-Rated Group 100 | . . . . 100 . . . Highest-Rated Ally 100 | . . . . 100 . . . Total Orders . | . . . . . . . . Ally Attacks 3 | . . . . 3 . . . Total Damage 86 | . . . . 86 . . . Kills . | . . . . . . . . Allies Corrupted . | . . . . . . . . Allies Melted . | . . . . . . . . Intel | -11 -10 -9 -8 -8 -7 -7 -7 ------- Run | Yrd Mat Mat Mat Sto Fac DSF Gar Robot Analysis Total . | . . . . . . . . Derelict Logs Recovered . | . . . . . . . . Drone Launches . | . . . . . . . . Drone Recoveries . | . . . . . . . . Exploration | -11 -10 -9 -8 -8 -7 -7 -7 ------------- Run | Yrd Mat Mat Mat Sto Fac DSF Gar Turns Passed 458 | 9 87 49 4 107 22 38 142 Spaces Moved 1079 | 18 207 146 8 362 62 65 211 Core 332 | 18 53 . . . . 50 211 Treads . | . . . . . . . . Legs . | . . . . . . . . Wheels . | . . . . . . . . Hover . | . . . . . . . . Flight 747 | . 154 146 8 362 62 15 . Fastest Speed 26 | 50 32 29 29 26 35 35 50 Average Speed 36 | 50 37 29 29 27 35 46 50 Slowest Speed 50 | 50 50 32 29 35 35 50 50 Overloaded Moves . | . . . . . . . . Propulsion Burnouts . | . . . . . . . . Robots Hopped 17 | . 3 5 . 9 . . . Cave-ins Triggered . | . . . . . . . . Exploration Rate (%) 29 | 3 42 18 2 69 2 57 39 Regions Visited 7 Branch Regions 1 Pre-discovered Areas . | . . . . . . . . Known Exits Taken 5 | . 1 1 1 1 1 . . Unknown Exits Taken 1 | 1 . . . . . . . Scrap Searched . | . . . . . . . . Spaces Dug . | . . . . . . . . Terrain Destroyed . | . . . . . . . . Melee . | . . . . . . . . Projectile . | . . . . . . . . AOE . | . . . . . . . . Terrain Rammed . | . . . . . . . . Walls Destroyed . | . . . . . . . . Machines Disabled . | . . . . . . . . Actions | -11 -10 -9 -8 -8 -7 -7 -7 --------- Run | Yrd Mat Mat Mat Sto Fac DSF Gar Total 1113 | 17 210 145 8 357 61 71 244 Wait 25 | . 1 . . . . . 24 Move 1041 | 17 200 137 7 346 61 64 209 Hop 13 | . 3 4 . 6 . . . Pick Up 8 | . 3 1 . 3 . 1 . Fast Attach 10 | . 2 2 . 2 . 2 2 Attach 7 | . 1 1 1 . . 4 . Detach . | . . . . . . . . Swap . | . . . . . . . . Drop . | . . . . . . . . Fire . | . . . . . . . . Melee . | . . . . . . . . Ram 9 | . . . . . . . 9 Kick . | . . . . . . . . Crush . | . . . . . . . . Escape Stasis . | . . . . . . . . Rewire . | . . . . . . . . Trap . | . . . . . . . . Miscellaneous . | . . . . . . . . Route ------- -11/Scrapyard -10/Materials (discovered 4 exits: *Mat x3 / [*Min]) -9/Materials -8/Materials -8/Storage -7/Factory -7/DSF -7/Garrison (discovered 1 exit: *Fac) History --------- Turn | Location | Event 3 | -11/Scrapyard | Discovered new exit (range 15) 10 | -11/Scrapyard | Entered Materials 28 | -10/Materials | Discovered new exit (range 6) 68 | -10/Materials | Identified exit to Materials 97 | -10/Materials | Entered another Materials area 97 | -9/Materials | Evolved 2 slots: Propulsion x1, Utility x1 140 | -9/Materials | Discovered new exit (range 6) 144 | -9/Materials | Identified exit to Materials 146 | -9/Materials | Entered another Materials area 146 | -8/Materials | Evolved 2 slots: Propulsion x1, Utility x1 147 | -8/Materials | Discovered new exit (range 7) 149 | -8/Materials | Identified exit to Storage 150 | -8/Materials | Entered Storage 175 | -8/Storage | Met 01-MTF 248 | -8/Storage | Identified exit to Factory 257 | -8/Storage | Entered Factory 257 | -7/Factory | Evolved 2 slots: Utility x2 259 | -7/Factory | Identified exit to DSF 279 | -7/Factory | Entered DSF 286 | -7/DSF | Discovered new exit (range 15) 293 | -7/DSF | Identified exit to Garrison 307 | -7/DSF | Additional patrols routed to DSF 317 | -7/DSF | Lost 5 parts (1p4n) 317 | -7/DSF | Entered Garrison 374 | -7/Garrison | Triggered checkpoint 389 | -7/Garrison | Discovered new exit (range 12) 394 | -7/Garrison | Identified exit to Factory 394 | -7/Garrison | Attempted to access garrison exit controls, blocked by remote lockdown 442 | -7/Garrison | Core integrity fell below 50% 454 | -7/Garrison | Core integrity fell below 20% 459 | -7/Garrison | Destroyed by S-27 Virus with Autogun Last Messages --------------- 00394_ Remote lockdown engaged. 00399_ S-27 Virus destroyed. 00400_ Acquired Lgt. Nuclear Core. 00401_ Acquired 21 matter. 00402_ S-27 Virus destroyed. 00405_ Lyr. Light Armor Plating destroyed. 00412_ Knocked back. 00414_ Broken Arm. Treads severed. 00427_ Slammed into C-17 Slicer. 00430_ Slammed into S-27 Virus. 00430_ Arm. Treads severed. 00431_ Slammed into S-27 Virus. 00432_ Adv. Weight Redist. System destroyed. 00432_ Slammed into S-27 Virus. 00435_ Lgt. Nuclear Core destroyed. 00436_ Arm. Treads destroyed. 00437_ Chainsword severed. 00441_ Machine Analyzer severed. 00443_ Signal Interpreter severed. 00449_ Adv. Visual Processing Unit severed. Map ----- +----------------------------------------------------+ | ????????????????????????????????????????? | | ????????????????????????????????????????? | | ????????????????????????????????????????? | | ????????????????????????????????????????? | | ????????????????????????????????????????? | | ????????????????????????????????????????? | | ????????????????????????????????????????? | | ????????????????????????????????????????? | | ????????????????????????????????????????? | | ????????????????????????????????????????? | | ????????????????????????????????????????? | | ????????????????????????????????????????? | | ????????????????????????????????????????? | | ###?????????????????????????????????????? | | ??????????????????????????????????????? | | ???????????????????????????????????????? | | ????????????????????????????????????????? | | ????????????????????????????????????????? | | #???????????????????????????????????????? | | #???????????????????????????????????????? | | #???????????????????????????????????????? | | #???????????????????????????????????????? | | #?????????????????????????#######???????? | | #????????????????????????## #???????? | | ##########################cc #???????? | | = g Y gggggggs@s # #???????? | | #########+#######c ## #???????? | | #???????????????########???????? | | ###### #??????????????????????????????? | | ?????# #??????????????????????????????? | | ?????# #??????????????????????????????? | | ?????+ #??????????????????????????????? | | ?????# #??????????????????????????????? | | ?????# #??????????????????????????????? | | ?????# ######### ####+#??????????????? | | ?????+ #??????????????? | | ???? + !??????????? | | ????## #################??????????????? | | ?????# #??????????????????????????????? | | ?????# #??????????????????????????????? | | ?????# #??????????????????????????????? | | ?????# #???########???????????????????? | | ?????# #??"""""""""#??????????????????? | | ?????# #?"!!!!!!"""#??????????????????? | | ?????# ## ""#??????????????????? | | ?????"% !"#??????????????????? | | ?????"* !"#??????????????????? | | ?????" [## !"#??????????????????? | | ?????# #? !"#??????????????????? | | ?????# #?? ""#??????????????????? | +----------------------------------------------------+ Best States ------------- Heat Dissipation 34 Energy Generation 14 Energy Capacity 160 Matter Stores 146 Matter Capacity 300 Sight Range 20 Terrain Scan Density 10 Additional Mass Support 9 Armor Coverage 150 Evasion (%) 64 Item Schematics ----------------- None Robot Schematics ------------------ None Fabricated ------------ Nothing Alien Tech Used ----------------- None Achievements -------------- None Challenges ------------ None Game ------ Seed ZioniteDisruptorClaymores Manual? 0 Play Time 00:20:42 Cumulative 168.6 hours Start 2024.04.07 @ 18:51:43 End 2024.04.07 @ 19:13:19 Sessions 1 Manual Loads 0 Difficulty Rogue Special Mode None Game No. 143 Rogue 138 Adventurer 0 Explorer 5 Win Type - Total 5 Types 2/0/1/2/0/0/0/0/0 Lore% 52 Gallery% 61 Achievement% 47 Wizard Run 0 Options --------- Layout 1 ASCII 0 Keyboard 0 Movement Numpad Keybinds 0 Fullscreen 2 Font 24/Tamsyn Map View 50x35 Zoom Use 0% Tactical HUD 1 Map Filters NONE Filters NONE Steam 1 RUN: 5eef8f05-2f3f-43ae-9437-eab2c8814402